{"text_format":"1","workbook":"xlsx","n_sheets":1,"sheets":["Hárok1"],"not_rendered":{"charts":0,"images":1,"macros":1,"external_links":0,"defined_names":0,"comments":0,"pivot_tables":0},"unopened":[],"bounds":{"document_bytes":16777216,"sheet_cells":100000,"rows_first":2000,"rows_last":500,"rows_between":2000,"halvings":0,"cell_chars":16384,"cell_head_chars":4096},"cells_cut":0,"cells_raw":0,"read":"whole","date_system":"1900"}

{"sheet":"Hárok1","index":0,"n_rows":12,"n_cols":9,"rows_kept":12,"cut":false,"hidden":false,"merged":[]}
["před","po","výsledek","výsledek2","výsledek3","výsledek4","výsledek5",null,"barvy"]
["zelená","zelená",{"$f":"IF(tbData[[#This Row],[před]]=tbData[[#This Row],[po]],\"stejné\",IF(MATCH(tbData[[#This Row],[před]],$I$2:$I$4,0)>MATCH(tbData[[#This Row],[po]],$I$2:$I$4,0),\"zlepšení\",\"zhoršení\"))","v":"stejné"},{"$f":"IF(tbData[[#This Row],[před]]=tbData[[#This Row],[po]],0,IF(MATCH(tbData[[#This Row],[před]],$I$2:$I$4,0)>MATCH(tbData[[#This Row],[po]],$I$2:$I$4,0),1,-1))","v":0},{"$f":"IF(tbData[[#This Row],[před]]=tbData[[#This Row],[po]],0,IF(MATCH(tbData[[#This Row],[před]],$I$2:$I$4,0)>MATCH(tbData[[#This Row],[po]],$I$2:$I$4,0),1,-1))","v":0},{"$f":"IF(tbData[[#This Row],[před]]=tbData[[#This Row],[po]],\"stejné\",IF(IF(tbData[[#This Row],[před]]=\"zelená\",3,IF(tbData[[#This Row],[před]]=\"žlutá\",2,1))-IF(tbData[[#This Row],[po]]=\"zelená\",3,IF(tbData[[#This Row],[po]]=\"žlutá\",2,1))<0,\"zlepšení\",\"zhoršení\"))","v":"stejné"},"stejné",null,"zelená"]
["žlutá","žlutá",{"$f":"IF(tbData[[#This Row],[před]]=tbData[[#This Row],[po]],\"stejné\",IF(MATCH(tbData[[#This Row],[před]],$I$2:$I$4,0)>MATCH(tbData[[#This Row],[po]],$I$2:$I$4,0),\"zlepšení\",\"zhoršení\"))","v":"stejné"},{"$f":"IF(tbData[[#This Row],[před]]=tbData[[#This Row],[po]],0,IF(MATCH(tbData[[#This Row],[před]],$I$2:$I$4,0)>MATCH(tbData[[#This Row],[po]],$I$2:$I$4,0),1,-1))","v":0},{"$f":"IF(tbData[[#This Row],[před]]=tbData[[#This Row],[po]],0,IF(MATCH(tbData[[#This Row],[před]],$I$2:$I$4,0)>MATCH(tbData[[#This Row],[po]],$I$2:$I$4,0),1,-1))","v":0},{"$f":"IF(tbData[[#This Row],[před]]=tbData[[#This Row],[po]],\"stejné\",IF(IF(tbData[[#This Row],[před]]=\"zelená\",3,IF(tbData[[#This Row],[před]]=\"žlutá\",2,1))-IF(tbData[[#This Row],[po]]=\"zelená\",3,IF(tbData[[#This Row],[po]]=\"žlutá\",2,1))<0,\"zlepšení\",\"zhoršení\"))","v":"stejné"},"stejné",null,"žlutá"]
["červená","červená",{"$f":"IF(tbData[[#This Row],[před]]=tbData[[#This Row],[po]],\"stejné\",IF(MATCH(tbData[[#This Row],[před]],$I$2:$I$4,0)>MATCH(tbData[[#This Row],[po]],$I$2:$I$4,0),\"zlepšení\",\"zhoršení\"))","v":"stejné"},{"$f":"IF(tbData[[#This Row],[před]]=tbData[[#This Row],[po]],0,IF(MATCH(tbData[[#This Row],[před]],$I$2:$I$4,0)>MATCH(tbData[[#This Row],[po]],$I$2:$I$4,0),1,-1))","v":0},{"$f":"IF(tbData[[#This Row],[před]]=tbData[[#This Row],[po]],0,IF(MATCH(tbData[[#This Row],[před]],$I$2:$I$4,0)>MATCH(tbData[[#This Row],[po]],$I$2:$I$4,0),1,-1))","v":0},{"$f":"IF(tbData[[#This Row],[před]]=tbData[[#This Row],[po]],\"stejné\",IF(IF(tbData[[#This Row],[před]]=\"zelená\",3,IF(tbData[[#This Row],[před]]=\"žlutá\",2,1))-IF(tbData[[#This Row],[po]]=\"zelená\",3,IF(tbData[[#This Row],[po]]=\"žlutá\",2,1))<0,\"zlepšení\",\"zhoršení\"))","v":"stejné"},"stejné",null,"červená"]
["zelená","žlutá",{"$f":"IF(tbData[[#This Row],[před]]=tbData[[#This Row],[po]],\"stejné\",IF(MATCH(tbData[[#This Row],[před]],$I$2:$I$4,0)>MATCH(tbData[[#This Row],[po]],$I$2:$I$4,0),\"zlepšení\",\"zhoršení\"))","v":"zhoršení"},{"$f":"IF(tbData[[#This Row],[před]]=tbData[[#This Row],[po]],0,IF(MATCH(tbData[[#This Row],[před]],$I$2:$I$4,0)>MATCH(tbData[[#This Row],[po]],$I$2:$I$4,0),1,-1))","v":-1},{"$f":"IF(tbData[[#This Row],[před]]=tbData[[#This Row],[po]],0,IF(MATCH(tbData[[#This Row],[před]],$I$2:$I$4,0)>MATCH(tbData[[#This Row],[po]],$I$2:$I$4,0),1,-1))","v":-1},{"$f":"IF(tbData[[#This Row],[před]]=tbData[[#This Row],[po]],\"stejné\",IF(IF(tbData[[#This Row],[před]]=\"zelená\",3,IF(tbData[[#This Row],[před]]=\"žlutá\",2,1))-IF(tbData[[#This Row],[po]]=\"zelená\",3,IF(tbData[[#This Row],[po]]=\"žlutá\",2,1))<0,\"zlepšení\",\"zhoršení\"))","v":"zhoršení"},"zhoršení"]
["zelená","červená",{"$f":"IF(tbData[[#This Row],[před]]=tbData[[#This Row],[po]],\"stejné\",IF(MATCH(tbData[[#This Row],[před]],$I$2:$I$4,0)>MATCH(tbData[[#This Row],[po]],$I$2:$I$4,0),\"zlepšení\",\"zhoršení\"))","v":"zhoršení"},{"$f":"IF(tbData[[#This Row],[před]]=tbData[[#This Row],[po]],0,IF(MATCH(tbData[[#This Row],[před]],$I$2:$I$4,0)>MATCH(tbData[[#This Row],[po]],$I$2:$I$4,0),1,-1))","v":-1},{"$f":"IF(tbData[[#This Row],[před]]=tbData[[#This Row],[po]],0,IF(MATCH(tbData[[#This Row],[před]],$I$2:$I$4,0)>MATCH(tbData[[#This Row],[po]],$I$2:$I$4,0),1,-1))","v":-1},{"$f":"IF(tbData[[#This Row],[před]]=tbData[[#This Row],[po]],\"stejné\",IF(IF(tbData[[#This Row],[před]]=\"zelená\",3,IF(tbData[[#This Row],[před]]=\"žlutá\",2,1))-IF(tbData[[#This Row],[po]]=\"zelená\",3,IF(tbData[[#This Row],[po]]=\"žlutá\",2,1))<0,\"zlepšení\",\"zhoršení\"))","v":"zhoršení"},"zhoršení"]
["žlutá","zelená",{"$f":"IF(tbData[[#This Row],[před]]=tbData[[#This Row],[po]],\"stejné\",IF(MATCH(tbData[[#This Row],[před]],$I$2:$I$4,0)>MATCH(tbData[[#This Row],[po]],$I$2:$I$4,0),\"zlepšení\",\"zhoršení\"))","v":"zlepšení"},{"$f":"IF(tbData[[#This Row],[před]]=tbData[[#This Row],[po]],0,IF(MATCH(tbData[[#This Row],[před]],$I$2:$I$4,0)>MATCH(tbData[[#This Row],[po]],$I$2:$I$4,0),1,-1))","v":1},{"$f":"IF(tbData[[#This Row],[před]]=tbData[[#This Row],[po]],0,IF(MATCH(tbData[[#This Row],[před]],$I$2:$I$4,0)>MATCH(tbData[[#This Row],[po]],$I$2:$I$4,0),1,-1))","v":1},{"$f":"IF(tbData[[#This Row],[před]]=tbData[[#This Row],[po]],\"stejné\",IF(IF(tbData[[#This Row],[před]]=\"zelená\",3,IF(tbData[[#This Row],[před]]=\"žlutá\",2,1))-IF(tbData[[#This Row],[po]]=\"zelená\",3,IF(tbData[[#This Row],[po]]=\"žlutá\",2,1))<0,\"zlepšení\",\"zhoršení\"))","v":"zlepšení"},"zlepšení"]
["žlutá","červená",{"$f":"IF(tbData[[#This Row],[před]]=tbData[[#This Row],[po]],\"stejné\",IF(MATCH(tbData[[#This Row],[před]],$I$2:$I$4,0)>MATCH(tbData[[#This Row],[po]],$I$2:$I$4,0),\"zlepšení\",\"zhoršení\"))","v":"zhoršení"},{"$f":"IF(tbData[[#This Row],[před]]=tbData[[#This Row],[po]],0,IF(MATCH(tbData[[#This Row],[před]],$I$2:$I$4,0)>MATCH(tbData[[#This Row],[po]],$I$2:$I$4,0),1,-1))","v":-1},{"$f":"IF(tbData[[#This Row],[před]]=tbData[[#This Row],[po]],0,IF(MATCH(tbData[[#This Row],[před]],$I$2:$I$4,0)>MATCH(tbData[[#This Row],[po]],$I$2:$I$4,0),1,-1))","v":-1},{"$f":"IF(tbData[[#This Row],[před]]=tbData[[#This Row],[po]],\"stejné\",IF(IF(tbData[[#This Row],[před]]=\"zelená\",3,IF(tbData[[#This Row],[před]]=\"žlutá\",2,1))-IF(tbData[[#This Row],[po]]=\"zelená\",3,IF(tbData[[#This Row],[po]]=\"žlutá\",2,1))<0,\"zlepšení\",\"zhoršení\"))","v":"zhoršení"},"zhoršení"]
["červená","zelená",{"$f":"IF(tbData[[#This Row],[před]]=tbData[[#This Row],[po]],\"stejné\",IF(MATCH(tbData[[#This Row],[před]],$I$2:$I$4,0)>MATCH(tbData[[#This Row],[po]],$I$2:$I$4,0),\"zlepšení\",\"zhoršení\"))","v":"zlepšení"},{"$f":"IF(tbData[[#This Row],[před]]=tbData[[#This Row],[po]],0,IF(MATCH(tbData[[#This Row],[před]],$I$2:$I$4,0)>MATCH(tbData[[#This Row],[po]],$I$2:$I$4,0),1,-1))","v":1},{"$f":"IF(tbData[[#This Row],[před]]=tbData[[#This Row],[po]],0,IF(MATCH(tbData[[#This Row],[před]],$I$2:$I$4,0)>MATCH(tbData[[#This Row],[po]],$I$2:$I$4,0),1,-1))","v":1},{"$f":"IF(tbData[[#This Row],[před]]=tbData[[#This Row],[po]],\"stejné\",IF(IF(tbData[[#This Row],[před]]=\"zelená\",3,IF(tbData[[#This Row],[před]]=\"žlutá\",2,1))-IF(tbData[[#This Row],[po]]=\"zelená\",3,IF(tbData[[#This Row],[po]]=\"žlutá\",2,1))<0,\"zlepšení\",\"zhoršení\"))","v":"zlepšení"},"zlepšení"]
["červená","žlutá",{"$f":"IF(tbData[[#This Row],[před]]=tbData[[#This Row],[po]],\"stejné\",IF(MATCH(tbData[[#This Row],[před]],$I$2:$I$4,0)>MATCH(tbData[[#This Row],[po]],$I$2:$I$4,0),\"zlepšení\",\"zhoršení\"))","v":"zlepšení"},{"$f":"IF(tbData[[#This Row],[před]]=tbData[[#This Row],[po]],0,IF(MATCH(tbData[[#This Row],[před]],$I$2:$I$4,0)>MATCH(tbData[[#This Row],[po]],$I$2:$I$4,0),1,-1))","v":1},{"$f":"IF(tbData[[#This Row],[před]]=tbData[[#This Row],[po]],0,IF(MATCH(tbData[[#This Row],[před]],$I$2:$I$4,0)>MATCH(tbData[[#This Row],[po]],$I$2:$I$4,0),1,-1))","v":1},{"$f":"IF(tbData[[#This Row],[před]]=tbData[[#This Row],[po]],\"stejné\",IF(IF(tbData[[#This Row],[před]]=\"zelená\",3,IF(tbData[[#This Row],[před]]=\"žlutá\",2,1))-IF(tbData[[#This Row],[po]]=\"zelená\",3,IF(tbData[[#This Row],[po]]=\"žlutá\",2,1))<0,\"zlepšení\",\"zhoršení\"))","v":"zlepšení"},"zlepšení"]
[null,null,{"$f":"IF(tbData[[#This Row],[před]]=tbData[[#This Row],[po]],\"stejné\",IF(MATCH(tbData[[#This Row],[před]],$I$2:$I$4,0)>MATCH(tbData[[#This Row],[po]],$I$2:$I$4,0),\"zlepšení\",\"zhoršení\"))","v":"stejné"},{"$f":"IF(tbData[[#This Row],[před]]=tbData[[#This Row],[po]],0,IF(MATCH(tbData[[#This Row],[před]],$I$2:$I$4,0)>MATCH(tbData[[#This Row],[po]],$I$2:$I$4,0),1,-1))","v":0},{"$f":"IF(tbData[[#This Row],[před]]=tbData[[#This Row],[po]],0,IF(MATCH(tbData[[#This Row],[před]],$I$2:$I$4,0)>MATCH(tbData[[#This Row],[po]],$I$2:$I$4,0),1,-1))","v":0},{"$f":"IF(tbData[[#This Row],[před]]=tbData[[#This Row],[po]],\"stejné\",IF(IF(tbData[[#This Row],[před]]=\"zelená\",3,IF(tbData[[#This Row],[před]]=\"žlutá\",2,1))-IF(tbData[[#This Row],[po]]=\"zelená\",3,IF(tbData[[#This Row],[po]]=\"žlutá\",2,1))<0,\"zlepšení\",\"zhoršení\"))","v":"stejné"}]
["modrá","žlutá",{"$f":"IF(tbData[[#This Row],[před]]=tbData[[#This Row],[po]],\"stejné\",IF(MATCH(tbData[[#This Row],[před]],$I$2:$I$4,0)>MATCH(tbData[[#This Row],[po]],$I$2:$I$4,0),\"zlepšení\",\"zhoršení\"))","v":{"$error":"#N/A"}},{"$f":"IF(tbData[[#This Row],[před]]=tbData[[#This Row],[po]],0,IF(MATCH(tbData[[#This Row],[před]],$I$2:$I$4,0)>MATCH(tbData[[#This Row],[po]],$I$2:$I$4,0),1,-1))","v":{"$error":"#N/A"}},{"$f":"IF(tbData[[#This Row],[před]]=tbData[[#This Row],[po]],0,IF(MATCH(tbData[[#This Row],[před]],$I$2:$I$4,0)>MATCH(tbData[[#This Row],[po]],$I$2:$I$4,0),1,-1))","v":{"$error":"#N/A"}},{"$f":"IF(tbData[[#This Row],[před]]=tbData[[#This Row],[po]],\"stejné\",IF(IF(tbData[[#This Row],[před]]=\"zelená\",3,IF(tbData[[#This Row],[před]]=\"žlutá\",2,1))-IF(tbData[[#This Row],[po]]=\"zelená\",3,IF(tbData[[#This Row],[po]]=\"žlutá\",2,1))<0,\"zlepšení\",\"zhoršení\"))","v":"zlepšení"},{"$error":"#N/A"}]